Cogmind - Beta 13 X3 @@@ ROGUE MODE // 2024.02.17 @ 16:23:13 Player: aoemica Result: Destroyed by S-10 Pest with Light Assault Rifle Performance ------------- Evolutions (1) 500 Regions Visited (6) 1200 Robots Destroyed (15) 75 Value Destroyed (218) 218 Prototype IDs (25) 500 Alien Tech Used (0) 0 Bonus (300) 300 TOTAL SCORE: 2793 Bonus ------- Aligned with FarCom 300 Cogmind --------- Core Integrity 0/400 Matter 292/300 Energy 99/100 System Corruption 0% Temperature Cool (0) Movement Core (50) Location -8/Mines Parts ------- > --- POWER (1) -------- (None) > --- PROPULSION (2) --- (None) > --- UTILITY (4) ------ (None) > --- WEAPON (2) ------- (None) > --- INVENTORY (5) ---- Light Nuclear Core Modified TNC Assault Rifle Missile Launcher Missile Launcher Peak State ------------ > --- POWER ------------ (None) > --- PROPULSION ------- (None) > --- UTILITY ---------- Decoy Drone Bay > --- WEAPON ----------- Improved Assault Rifle > --- INVENTORY -------- Light Nuclear Core Missile Launcher Missile Launcher Mining Laser [Rating: 18] Favorites ----------- Power None Propulsion None Utility Decoy Drone Bay Device Decoy Drone Bay Weapon Improved Assault Rifle Energy Gun Small Laser Ballistic Gun Improved Assault Rifle Launcher Missile Launcher Build | -11 -10 -10 -9 -9 -9 -8 ------- Run | Yrd Mat Min Mat Min Exi Min Slots Evolved 2 | . . . 2 . . . Power . | . . . . . . . Propulsion . | . . . . . . . Utility 2 | . . . 2 . . . Weapon . | . . . . . . . Parts Attached 17 | 2 4 4 3 2 . 2 Power . | . . . . . . . Engine . | . . . . . . . Core . | . . . . . . . Reactor . | . . . . . . . Propulsion . | . . . . . . . Treads . | . . . . . . . Leg . | . . . . . . . Wheel . | . . . . . . . Hover . | . . . . . . . Flight . | . . . . . . . Utility 1 | . . . . 1 . . Device 1 | . . . . 1 . . Storage . | . . . . . . . Processor . | . . . . . . . Hackware . | . . . . . . . Protection . | . . . . . . . Artifact . | . . . . . . . Weapon 16 | 2 4 4 3 1 . 2 Energy Gun 7 | 2 2 2 1 . . . Energy Cannon . | . . . . . . . Ballistic Gun 7 | . 2 2 2 1 . . Ballistic Cannon . | . . . . . . . Launcher 2 | . . . . . . 2 Special Weapon . | . . . . . . . Impact Weapon . | . . . . . . . Slashing Weapon . | . . . . . . . Piercing Weapon . | . . . . . . . Special Melee Weapon . | . . . . . . . Unidentified Prototypes 2 | . . . 1 1 . . Parts Lost 3 | . . . 1 1 . 1 Power . | . . . . . . . Propulsion . | . . . . . . . Utility . | . . . . . . . Weapon 3 | . . . 1 1 . 1 Highest Loss Streak 1 | . . . 1 1 . 1 To Critical Strikes . | . . . . . . . Average Slot Usage (%) 15 | . 28 28 17 11 11 11 Energy Gun 6 | . 24 22 12 . . . Ballistic Gun 8 | . 3 5 4 10 11 11 Naked Turns 12 | . . . 1 9 . 2 Heaviest Build 6 | 3 3 6 3 3 3 3 Greatest Support 3 | 3 3 3 3 3 3 3 Greatest Overweight (x) 1 | . . 1 . . . . Average Overweight (x) . | . . . . . . . Largest Inventory Capacity 5 | 5 5 5 5 5 5 5 Average Capacity 5 | 5 5 5 5 5 5 5 Most Carried 5 | 3 5 5 5 5 5 5 Average Carried 4 | 1 2 4 4 4 5 4 Final Capacity 5 | 5 5 5 5 5 5 5 Final Carried 5 | 1 5 5 5 5 5 5 Class Distribution -------------------- 100% | Mutant Dominant Class ---------------- Mutant | -10/Materials Mutant | -10/Mines Mutant | -9/Materials Mutant | -9/Mines Mutant | -9/Exiles Mutant | -8/Mines Resources | -11 -10 -10 -9 -9 -9 -8 ----------- Run | Yrd Mat Min Mat Min Exi Min Matter Collected 470 | 200 28 158 . 44 . 40 Remotely . | . . . . . . . Salvage Created 176 | . . 135 20 . . 21 Parts 22 | . . 11 4 . . 7 Haulers Intercepted . | . . . . . . . Recyclers Shooed . | . . . . . . . Parts Field Recycled . | . . . . . . . Retrieved Matter . | . . . . . . . Parts Self-Destructed . | . . . . . . . Prevented . | . . . . . . . Kills | -11 -10 -10 -9 -9 -9 -8 ------- Run | Yrd Mat Min Mat Min Exi Min Combat Hostiles Destroyed 13 | . . 4 6 . . 3 Guns 4 | . . 4 . . . . AOE 9 | . . . 6 . . 3 Classes Destroyed 4 | . . 3 1 . . . Worker 1 | . . 1 . . . . Watcher 1 | . . . 1 . . . Swarmer 11 | . . 2 6 . . 3 Grunt 2 | . . 2 . . . . Best Kill Streak 7 | . . 5 7 . . 3 Combat Bots Only 6 | . . 4 6 . . 3 Max Kills in Single Turn 7 | . . 1 7 . . 3 Gunslinging . | . . . . . . . Exploded 6 | . . . 6 . . 3 Melee . | . . . . . . . Uniques/NPCs Destroyed . | . . . . . . . Combat | -11 -10 -10 -9 -9 -9 -8 -------- Run | Yrd Mat Min Mat Min Exi Min Hostile Shots Fired 130 | . 7 20 44 19 . 40 Missed 43 | . 2 9 18 8 . 6 Damage Taken 978 | . 60 125 255 134 . 404 Core 494 | . 27 64 119 89 . 195 Absorbed by Shields . | . . . . . . . Core Remaining (%) 81 | 100 . 63 . . . . Volleys Fired 14 | . 2 8 1 . . 3 Largest 2 | . 2 2 1 . . 1 Hottest 90 | . 90 46 23 . . 36 Shots Fired 24 | . 4 16 1 . . 3 Gun 21 | . 4 16 1 . . . Cannon . | . . . . . . . Launcher 3 | . . . . . . 3 Special . | . . . . . . . Kinetic 19 | . 2 16 1 . . . Thermal 2 | . 2 . . . . . Explosive 3 | . . . . . . 3 Electromagnetic . | . . . . . . . Robot Hit Streak 9 | . 2 9 1 . . 1 Robot Miss Streak 3 | . 1 3 1 . . 1 Penetration Max . | . . . . . . . Secondary Targets . | . . . . . . . Shots Hit Robots 16 | . 3 11 1 . . 1 Core Hits 18 | . 1 8 7 . . 2 Critical Kills . | . . . . . . . Critical Parts Destroyed 1 | . . 1 . . . . Critical Strikes 1 | . . 1 . . . . Destroy 1 | . . 1 . . . . Melee Attacks . | . . . . . . . Impact . | . . . . . . . Slashing . | . . . . . . . Piercing . | . . . . . . . Sneak Attacks . | . . . . . . . Combat Hostiles . | . . . . . . . Follow-up Attacks . | . . . . . . . Damage Inflicted 1240 | . 32 201 698 . . 309 Guns 242 | . 32 201 9 . . . Cannons . | . . . . . . . Explosions 978 | . . . 689 . . 289 Melee . | . . . . . . . Ramming 20 | . . . . . . 20 Kinetic 231 | . 21 201 9 . . . Thermal 11 | . 11 . . . . . Explosive 978 | . . . 689 . . 289 Electromagnetic . | . . . . . . . Impact . | . . . . . . . Slashing . | . . . . . . . Piercing . | . . . . . . . Highest Corruption 1 | . 1 1 . . . . Average Corruption 1 | . 1 1 . . . . Corruption Purged . | . . . . . . . Corruption Blocked . | . . . . . . . Effects 2 | . 1 1 . . . . Matter Fused 2 | . 1 1 . . . . Overload Shots . | . . . . . . . Overflow Damage 20 | . . . . . . 20 Projectiles . | . . . . . . . Explosions 20 | . . . . . . 20 Melee . | . . . . . . . Knockbacks . | . . . . . . . Impact . | . . . . . . . Kinetic . | . . . . . . . Secondary . | . . . . . . . Self-Inflicted Damage 105 | . . . 39 . . 66 Shots 2 | . . . 1 . . 1 Rammed 4 | . . . . . . 4 Targets Rammed 4 | . . . . . . 4 Kicked . | . . . . . . . Crushed . | . . . . . . . Highest Temperature 15 | . 15 5 . . . . Average Temperature 8 | . 10 5 . . . . Received Heat Transfer 216 | . 33 51 21 75 . 36 Siege Activations . | . . . . . . . Robots Corrupted . | . . . . . . . Combat Hostiles . | . . . . . . . Parts Fried . | . . . . . . . Impact Corruptions . | . . . . . . . Robots Melted . | . . . . . . . Combat Hostiles . | . . . . . . . Parts Melted . | . . . . . . . Heat Transferred 25 | . 25 . . . . . Parts Sabotaged . | . . . . . . . Parts Stolen . | . . . . . . . Parts Stripped . | . . . . . . . Power Chain Reactions . | . . . . . . . Alert | -11 -10 -10 -9 -9 -9 -8 ------- Run | Yrd Mat Min Mat Min Exi Min Peak Influence 273 | . 104 180 273 186 . 166 Initial 106 | . . 40 70 106 . . Average 102 | . 56 114 135 157 . 85 Maximum Alert Level 1 | . . . 1 . . . Low Security (%) 96 | 100 100 100 68 100 . 100 Level 1 3 | . . . 31 . . . Level 2 . | . . . . . . . Level 3 . | . . . . . . . Level 4 . | . . . . . . . Level 5 . | . . . . . . . High Security . | . . . . . . . Max Security . | . . . . . . . Squads Dispatched 2 | . 2 . . . . . Investigation 1 | . 1 . . . . . Extermination . | . . . . . . . Reinforcement 1 | . 1 . . . . . Assault . | . . . . . . . Garrison . | . . . . . . . Intercept . | . . . . . . . Searches Triggered . | . . . . . . . Construction Impeded . | . . . . . . . Haulers Reinforced . | . . . . . . . Active Scanning Responses . | . . . . . . . Cargo Convoy Interrupts . | . . . . . . . Stealth | -11 -10 -10 -9 -9 -9 -8 --------- Run | Yrd Mat Min Mat Min Exi Min Distress Signals 3 | . 2 . 1 . . . Communications Jammed . | . . . . . . . Distress Signals . | . . . . . . . Times Spotted 51 | . 8 7 12 7 . 17 Peak Tracking Total 9 | . 4 5 8 5 . 9 Tactical Retreats 13 | . 2 2 1 3 . 5 Traps | -11 -10 -10 -9 -9 -9 -8 ------- Run | Yrd Mat Min Mat Min Exi Min Traps Triggered . | . . . . . . . Indirectly . | . . . . . . . Trap Hack Attempts . | . . . . . . . Triggered . | . . . . . . . Disarmed . | . . . . . . . Reprogrammed . | . . . . . . . Reused . | . . . . . . . Traps Extracted . | . . . . . . . Installed . | . . . . . . . Triggered . | . . . . . . . Objects Rigged 5 | . . . 5 . . . Exploded 1 | . . . 1 . . . Machines | -11 -10 -10 -9 -9 -9 -8 ---------- Run | Yrd Mat Min Mat Min Exi Min Machines Disabled 1 | . . . 1 . . . Max in Single Turn 1 | . . . 1 . . . Machines Repaired . | . . . . . . . Machines Dismantled . | . . . . . . . Machines Sabotaged . | . . . . . . . Overloaded Fab Kills . | . . . . . . . Hacking | -11 -10 -10 -9 -9 -9 -8 --------- Run | Yrd Mat Min Mat Min Exi Min Machines Accessed 7 | . 2 . 3 1 1 . Terminals 5 | . 2 . 3 . . . Fabricators . | . . . . . . . Repair Stations . | . . . . . . . Recycling Units . | . . . . . . . Scanalyzers . | . . . . . . . Garrison Access . | . . . . . . . Total Hacks 16 | . 6 . 8 1 1 . Successful 7 | . 3 . 2 1 1 . Failed 9 | . 3 . 6 . . . Catastrophic 1 | . . . 1 . . . Database Lockouts . | . . . . . . . Manual 11 | . 5 . 5 . 1 . Terminals 14 | . 6 . 8 . . . Fabricators . | . . . . . . . Repair Stations . | . . . . . . . Recycling Units . | . . . . . . . Scanalyzers . | . . . . . . . Garrison Access . | . . . . . . . Terminal Hacks 6 | . 3 . 1 1 1 . Robot Analysis 1 | . 1 . . . . . Open Door 1 | . . . . 1 . . Branch Access Points 2 | . 1 . 1 . . . Zone Layout 1 | . 1 . . . . . Derelict Proto ID Bank 1 | . . . . . 1 . Fabricator Hacks . | . . . . . . . Repair Station Hacks . | . . . . . . . Recycling Unit Hacks . | . . . . . . . Scanalyzer . | . . . . . . . Garrison Access Hacks . | . . . . . . . Unauthorized Hacks 1 | . . . 1 . . . Terminals 1 | . . . 1 . . . Detonate 1 | . . . 1 . . . Fabricators . | . . . . . . . Repair Stations . | . . . . . . . Recycling Units . | . . . . . . . Scanalyzers . | . . . . . . . Garrison Access . | . . . . . . . Data Cores Recovered . | . . . . . . . Used . | . . . . . . . Hacking Detections 3 | . 1 . 2 . . . Full Trace Events 1 | . 1 . . . . . Feedback Events 1 | . 1 . . . . . Corruption 1 | . 1 . . . . . Feedback Blocked . | . . . . . . . Robot Schematics Acquired . | . . . . . . . Robots Built . | . . . . . . . Authchips . | . . . . . . . Time . | . . . . . . . Total Robot Build Rating . | . . . . . . . Part Schematics Acquired . | . . . . . . . Parts Built . | . . . . . . . Authchips . | . . . . . . . Time . | . . . . . . . Total Part Build Rating . | . . . . . . . Parts Repaired . | . . . . . . . Time . | . . . . . . . Parts Recycled . | . . . . . . . Recycled Matter . | . . . . . . . Retrieved Matter . | . . . . . . . Retrieved Components . | . . . . . . . Parts Scanalyzed . | . . . . . . . Part Schematics Acquired . | . . . . . . . Parts Damaged . | . . . . . . . Bothacking | -11 -10 -10 -9 -9 -9 -8 ------------ Run | Yrd Mat Min Mat Min Exi Min Used RIF Installer . | . . . . . . . Robots Hacked . | . . . . . . . Non-combat . | . . . . . . . Combat . | . . . . . . . Robot Hacks Applied . | . . . . . . . Relay Couplers Released . | . . . . . . . Fabnet Peak Effective % . | . . . . . . . Robots Rewired . | . . . . . . . Allies Hacked . | . . . . . . . Hacks Repelled . | . . . . . . . Allies | -11 -10 -10 -9 -9 -9 -8 -------- Run | Yrd Mat Min Mat Min Exi Min Total Allies . | . . . . . . . Largest Group . | . . . . . . . Highest-Rated Group . | . . . . . . . Highest-Rated Ally . | . . . . . . . Total Orders 5 | . . . . 5 . . EXPLORE 5 | . . . . 5 . . Ally Attacks . | . . . . . . . Total Damage . | . . . . . . . Kills . | . . . . . . . Allies Corrupted . | . . . . . . . Allies Melted . | . . . . . . . Intel | -11 -10 -10 -9 -9 -9 -8 ------- Run | Yrd Mat Min Mat Min Exi Min Robot Analysis Total 1 | . 1 . . . . . Derelict Logs Recovered 4 | . . 1 . 3 . . Drone Launches 7 | . . . . 7 . . Drone Recoveries . | . . . . . . . Exploration | -11 -10 -10 -9 -9 -9 -8 ------------- Run | Yrd Mat Min Mat Min Exi Min Turns Passed 1476 | 17 159 147 138 251 110 654 Spaces Moved 1828 | 25 252 215 250 435 217 434 Core 1828 | 25 252 215 250 435 217 434 Treads . | . . . . . . . Legs . | . . . . . . . Wheels . | . . . . . . . Hover . | . . . . . . . Flight . | . . . . . . . Fastest Speed 50 | 50 50 50 50 50 50 50 Average Speed 50 | 50 50 50 50 50 50 50 Slowest Speed 100 | 50 50 100 50 50 50 50 Overloaded Moves . | . . . . . . . Propulsion Burnouts . | . . . . . . . Robots Hopped . | . . . . . . . Cave-ins Triggered . | . . . . . . . Exploration Rate (%) 54 | 3 43 63 32 97 60 81 Regions Visited 6 Branch Regions 4 Pre-discovered Areas . | . . . . . . . Known Exits Taken 2 | . 1 . 1 . . . Unknown Exits Taken 4 | 1 . 1 . 1 1 . Scrap Searched 4 | . . . . 3 . 1 Spaces Dug . | . . . . . . . Terrain Destroyed 36 | . . . 5 . . 31 Melee . | . . . . . . . Projectile . | . . . . . . . AOE 36 | . . . 5 . . 31 Terrain Rammed . | . . . . . . . Walls Destroyed . | . . . . . . . Machines Disabled . | . . . . . . . Actions | -11 -10 -10 -9 -9 -9 -8 --------- Run | Yrd Mat Min Mat Min Exi Min Total 2358 | 29 278 235 263 467 218 868 Wait 478 | . 17 7 2 29 . 423 Move 1822 | 24 251 214 249 434 216 434 Hop . | . . . . . . . Pick Up 12 | 3 4 1 2 1 1 . Fast Attach 3 | . . . 2 1 . . Attach 6 | 2 . . 1 1 . 2 Detach 4 | . . . 2 . . 2 Swap 8 | . 4 4 . . . . Drop 7 | . . 1 4 1 1 . Fire 14 | . 2 8 1 . . 3 Melee . | . . . . . . . Ram 4 | . . . . . . 4 Kick . | . . . . . . . Crush . | . . . . . . . Escape Stasis . | . . . . . . . Rewire . | . . . . . . . Trap . | . . . . . . . Miscellaneous . | . . . . . . . Route ------- -11/Scrapyard -10/Materials (discovered 2 exits: *Mat / *Min) -10/Mines -9/Materials (discovered 2 exits: Mat / *Min) -9/Mines (discovered 3 exits: *Mat x2 / *Exi) -9/Exiles -8/Mines History --------- Turn | Location | Event 8 | -11/Scrapyard | Discovered new exit (range 16) 18 | -11/Scrapyard | Entered Materials 41 | -10/Materials | Identified exit to Mines 64 | -10/Materials | Discovered new exit (range 16) 177 | -10/Materials | Entered Mines 294 | -10/Mines | Learned location of 1 exit from Materials 302 | -10/Mines | Build established: Mutant 321 | -10/Mines | Discovered new exit (range 7) 323 | -10/Mines | Met a Derelict testing a Signal Generator 324 | -10/Mines | Entered Materials 324 | -9/Materials | Evolved 2 slots: Utility x2 325 | -9/Materials | Identified exit to Materials 383 | -9/Materials | Identified exit to Mines 462 | -9/Materials | Entered Mines 515 | -9/Mines | Found the Drone Emporium 516 | -9/Mines | Found Prototype Device 516 | -9/Mines | Identified Decoy Drone Bay 528 | -9/Mines | Discovered exit to Materials (range 34) 539 | -9/Mines | Discovered exit to Materials (range 31) 623 | -9/Mines | Core integrity fell below 50% 626 | -9/Mines | Learned Materials terminal intel 629 | -9/Mines | Learned Materials garrison access intel 633 | -9/Mines | Received a Rocket Launcher from a helpful Derelict 640 | -9/Mines | Learned 4 Materials zone layouts 710 | -9/Mines | Deemed a non-threat by the Exiles lab entrance 710 | -9/Mines | Discovered new exit (range 5) 713 | -9/Mines | Entered Exiles 726 | -9/Exiles | Met 8R-AWN 734 | -9/Exiles | Met EX-HEX 749 | -9/Exiles | Met EX-BIN 755 | -9/Exiles | Aligned with FarCom system 756 | -9/Exiles | Given EX-Vault access code 769 | -9/Exiles | Opened EX-Vault 772 | -9/Exiles | Found Modified TNC 783 | -9/Exiles | Warned to stay clear of 0b10 Research branches 799 | -9/Exiles | Met EX-DEC 816 | -9/Exiles | Discovered new exit (range 14) 823 | -9/Exiles | Left Exiles lab with Modified TNC 823 | -9/Exiles | Entered Mines 1474 | -8/Mines | Core integrity fell below 20% 1477 | -8/Mines | Destroyed by S-10 Pest with Light Assault Rifle Last Messages --------------- 00836_ Acquired 9 matter. 00865_ Destroyed Flight Unit. 00867_ Destroyed Lgt. Assault Rifle. 00871_ The unstable cave ceiling collapses. 00913_ U-05 Engineer lays Concrete. 00913_ T-07 Excavator is excavating. 00916_ Searching scrap... 00916_ Found Arm. Treads. 00916_ Found Lrg. Matter Pod. 00916_ Found 20 Matter. 00917_ Acquired 20 matter. 00958_ T-07 Excavator is excavating. 01146_ Acquired 5 matter. 01149_ Acquired 4 matter. 01167_ U-05 Engineer lays Concrete. 01439_ Acquired 2 matter. 01475_ Slammed into S-10 Pest. 01475_ Broken Imp. Assault Rifle destroyed. 01475_ Slug penetrates Wall. 01476_ Slammed into S-10 Pest. Map ----- +----------------------------------------------------+ | | | ????????????????????????????????????????????????? | | ????????????????????????????????????????????????? | | ????????????????????????????????????????????????? | | ????????????????????????????????????????????????? | | ??????##########????????????????????????????????? | | ??????# ""????????????????????????????? | | ??????# #######????????????????????????????????? | | ??????# #??????????????????????????????????????? | | ????### #??????????????????????????????????????? | | ##?## ######### #????????????????????????????? | | ## ## ####?????????????????????????? | | #### ######## ##????????????????????????? | | #??# #?????# ##???????????????????????? | | #### #??# #?????# ##??????????????????????? | | ???# #??# #?????# ##?####????????????????? | | ?### #### #?????## ### ##???????????????? | | ## # #??????## ## #???????????????? | | # #???????## ## #???????????????? | | ##????????## ### ##??????????????? | | # ##?????????##b### ##?????????????? | | """ ###????????# g ##????????????? | | """ ######???#g#### ##????????????? | | """ ## ##### ##?## #?????????????? | | k s s#?### %##?????????????? | | h s s@#?# # ###?????????????? | | ##### ###### #?# # # #?????????????? | | ##???## ##????# ##### # #?????????????? | | ## #?????####?????# ###?????????????? | | ####### #??????????????# #######???????????????? | | ???#### #??????????????# #?????????????????????? | | ???# #??????????????# #?????????????????????? | | ???# ####??????????????# #?????????????????????? | | ???# #?????????????????# s?????????????????????? | | #### #?????????????????###?????????????????????? | | #?????????????????????????????????????????? | | #?????????????????????????????????????????? | | ######?????????????????????????????????????????? | | #??????????????????????????????????????????????? | | #??????????????###?????????????????????????????? | | #??????????????# ?????????????????????????????? | | #??????????????# #????????????###??????????????? | | ##?????????????# #??????????## ##?????????????? | | ##????????????# #?????????## #?????????????? | | ##???????????# #????????## #?????????????? | | ##??????????# #????????# #?????????????? | | ##?????????# #????????# """ #?????????????? | | #?????????# #????????# """ #?????????????? | | #?????????# #???????## """ #??????????????? | | #?????????# ######### #??????????????? | +----------------------------------------------------+ Best States ------------- Heat Dissipation 28 Energy Generation 5 Energy Capacity 100 Matter Stores 300 Matter Capacity 300 Sight Range 16 Terrain Scan Density 10 Evasion (%) 50 Item Schematics ----------------- None Robot Schematics ------------------ None Fabricated ------------ Nothing Alien Tech Used ----------------- None Achievements -------------- None Challenges ------------ None Game ------ Seed SpacefoldHeartTendrils Manual? 0 Play Time 00:16:21 Cumulative 959.0 hours Start 2024.02.17 @ 16:07:50 End 2024.02.17 @ 16:23:13 Sessions 1 Manual Loads 0 Difficulty Rogue Special Mode None Game No. 435 Rogue 434 Adventurer 1 Explorer 0 Win Type - Total 147 Types 38/13/22/4/2/1/62/3/2 Lore% 95 Gallery% 98 Achievement% 92 Wizard Run 0 Options --------- Layout 1 ASCII 0 Keyboard 1 Movement Numpad Keybinds 0 Fullscreen 0 Font 24/Smallcaps Map View 59x39 Zoom Use 0% Tactical HUD 1 Map Filters NONE Filters NONE Steam 1 RUN: ac54784b-3bd2-4833-aaf5-cb00377d34bf